bitfinex-derivatives/quotes_SOLF0:USTF0_20241212
["timestamp","ask_amount","ask_price","bid_price","bid_amount"]
[1733985824182,2.1742,229.88,229.83,5.32691941]
[1733985833293,2.1742,229.88,229.83,13.57302531]
[1733985834688,2.08,229.89,229.83,15.74772531]
[1733985834887,2.08,229.89,229.85,8.2461059]
[1733985835487,2.08,229.89,229.86,2.1743]
[1733985836390,2.08,229.9,229.86,2.1743]
[1733985836791,2.08,229.9,229.87,2.1743]
[1733985837393,2.1739,229.92,229.87,2.1743]
[1733985837593,2.08,229.91,229.87,2.1743]
[1733985837805,4.254,229.91,229.85,10.4205059]
[1733985838295,10.3261059,229.91,229.84,8.2461059]
[1733985839595,2.1741,229.9,229.85,2.1745]
[1733985840993,10.3261059,229.91,229.83,5.32691941]
[1733985840994,8.2461059,229.89,229.83,5.32691941]
[1733985841207,8.2461059,229.89,229.81,12.4169059]
[1733985841389,8.2461059,229.89,229.81,1.996]
[1733985841593,8.2461059,229.89,229.81,10.2421059]
[1733985842398,8.2461059,229.89,229.81,15.3520329]
[1733985842991,2.08,229.91,229.83,8.2461059]
[1733985844701,2.1743,229.88,229.83,8.2461059]
[1733985844903,2.08,229.91,229.83,8.2461059]
[1733985845202,10.3261059,229.91,229.85,8.2461059]
[1733985846603,2.1741,229.9,229.85,10.4206059]
[1733985847602,10.3261059,229.91,229.81,7.105927]
[1733985847804,8.2461059,229.89,229.81,7.105927]
[1733985848005,8.2461059,229.89,229.81,15.3520329]
[1733985849007,8.2461059,229.89,229.83,8.2461059]
[1733985849008,2.1743,229.87,229.83,8.2461059]
[1733985849209,2.08,229.86,229.83,8.2461059]
[1733985854109,2.1743,229.88,229.83,8.2461059]
[1733985854309,2.08,229.86,229.83,8.2461059]
[1733985857208,2.08,229.86,229.85,8.2461059]
[1733985857706,8.2461059,229.94,229.85,8.2461059]
[1733985857907,2.08,229.93,229.87,8.2461059]
[1733985858604,2.1739,229.92,229.87,8.2461059]
[1733985859005,10.4200059,229.92,229.86,2.1744]
[1733985859211,2.08,229.93,229.82,2.1748]
[1733985859212,10.4204059,229.88,229.82,2.1748]
[1733985859411,10.4204059,229.88,229.81,7.105927]
[1733985859412,2.08,229.87,229.81,7.105927]
[1733985859813,2.1745,229.86,229.81,7.105927]
[1733985860010,10.3261059,229.86,229.81,5.109927]
[1733985860211,10.3261059,229.86,229.79,2.0692]
[1733985860411,10.3261059,229.86,229.8,5.30888072]
[1733985860616,2.08,229.86,229.8,15.72998662]
[1733985860817,2.08,229.86,229.8,13.55498662]
[1733985861623,4.2544,229.86,229.81,2.1749]
[1733985863216,2.08,229.86,229.8,13.55498662]
[1733985863419,2.08,229.86,229.82,10.4208059]
[1733985865016,2.1741,229.9,229.82,8.2461059]
[1733985865215,2.08,229.89,229.84,8.2461059]
[1733985865424,2.08,229.88,229.84,8.2461059]
[1733985866721,2.08,229.88,229.85,2.1745]
[1733985867323,2.08,229.88,229.84,8.2461059]
[1733985867625,2.08,229.88,229.83,10.4207059]
[1733985868519,2.08,229.88,229.83,8.2461059]
[1733985868722,2.08,229.88,229.84,2.1746]
[1733985870924,8.2461059,229.87,229.79,2.0692]
[1733985871124,8.2461059,229.85,229.79,2.0692]
[1733985872030,2.1747,229.84,229.79,2.0692]
[1733985872225,2.08,229.83,229.79,2.0692]
[1733985878430,10.3261059,229.83,229.7,15.23188105]
[1733985878738,8.2461059,229.81,229.74,10.4038059]
[1733985879138,8.2461059,229.81,229.74,15.69109845]
[1733985879639,10.4210059,229.81,229.75,2.1754]
[1733985882835,10.4214059,229.77,229.71,2.1758]
[1733985883039,2.08,229.76,229.71,2.1758]
[1733985884042,2.08,229.76,229.74,2.1755]
[1733985884242,2.08,229.76,229.73,8.2461059]
[1733985884844,2.08,229.76,229.75,2.1755]
[1733985885044,8.2461059,229.8,229.73,8.2461059]
[1733985885246,2.08,229.79,229.73,8.2461059]
[1733985886746,2.08,229.79,229.76,2.1753]
[1733985888243,2.08,229.79,229.75,2.1755]
[1733985891145,8.2461059,229.78,229.7,5.26836326]
[1733985891344,8.2461059,229.76,229.7,5.26836326]
[1733985891648,2.08,229.79,229.7,5.26836326]
[1733985891852,8.2461059,229.78,229.71,8.2461059]
[1733985894749,8.2461059,229.78,229.74,2.1756]
[1733985896146,2.08,229.77,229.74,2.1756]
[1733985904859,2.08,229.77,229.71,8.2461059]
[1733985905061,2.08,229.77,229.74,2.1755]
[1733985905358,66.29499754,229.87,229.75,8.2461059]
[1733985905359,62.08589754,229.87,229.75,8.2461059]
[1733985905658,8.2461059,229.85,229.79,8.2461059]
[1733985905854,2.08,229.84,229.79,8.2461059]
[1733985906555,2.08,229.84,229.81,2.1748]
[1733985908561,2.08,229.84,229.82,2.1748]
[1733985909256,2.08,229.84,229.7,7.34836326]
[1733985909560,8.2461059,229.81,229.73,8.2461059]
[1733985910152,8.2461059,229.79,229.76,2.1753]
[1733985912658,8.2461059,229.79,229.74,2.1755]
[1733985912858,8.2461059,229.79,229.73,8.2461059]
[1733985913657,8.2461059,229.77,229.7,5.26836326]
[1733985913957,8.2461059,229.75,229.7,5.26836326]
[1733985914657,8.2461059,229.75,229.71,2.1758]
[1733985914957,8.2461059,229.75,229.7,5.26836326]
[1733985915350,8.2461059,229.75,229.7,7.44416326]
[1733985915758,8.2461059,229.75,229.71,2.1758]
[1733985915961,2.08,229.74,229.71,2.1758]
[1733985919163,2.08,229.74,229.69,2.1759]
[1733985919556,2.08,229.74,229.69,7.52619055]
[1733985920255,8.2461059,229.71,229.65,2.1113]
[1733985920659,8.2461059,229.69,229.65,2.1113]
[1733985920858,2.08,229.68,229.65,2.1113]
[1733985922059,1.3837,229.85,229.65,2.1113]
[1733985922060,2.08,229.7,229.68,2.1761]
[1733985922461,2.08,229.7,229.65,10.3574059]
[1733985922765,2.08,229.7,229.67,8.2461059]
[1733985923561,8.2461059,229.75,229.69,2.176]
[1733985923764,2.08,229.74,229.65,2.1113]
[1733985923967,2.08,229.74,229.66,8.2461059]
[1733985924162,8.2461059,229.73,229.66,8.2461059]
[1733985924369,8.2461059,229.73,229.67,2.1762]
[1733985924667,8.2461059,229.71,229.65,2.1113]
[1733985925565,8.2461059,229.71,229.66,2.1763]
[1733985925867,8.2461059,229.71,229.63,51.86627415]
[1733985926078,8.2461059,229.67,229.63,46.73651761]
[1733985926360,8.2461059,229.65,229.61,0.16184]
[1733985926568,8.2461059,229.63,229.61,0.16184]
[1733985927264,10.4227059,229.63,229.61,0.16184]
[1733985928569,8.2461059,229.63,229.61,0.16184]
[1733985931863,8.2461059,229.65,229.61,0.16184]
[1733985932166,2.08,229.64,229.61,0.16184]
[1733985932363,2.8735,229.73,229.61,8.4079459]
[1733985932670,2.8735,229.73,229.65,8.2461059]
[1733985932671,10.3261059,229.72,229.65,8.2461059]
[1733985934361,10.3261059,229.72,229.67,2.1762]
[1733985935066,10.3261059,229.72,229.68,2.1761]
[1733985937072,8.2461059,229.7,229.68,2.1761]
[1733985937569,2.08,229.69,229.68,2.1761]
[1733985937873,2.08,229.71,229.67,8.2461059]
[1733985938071,2.08,229.71,229.7,2.1759]
[1733985938367,2.08,229.76,229.69,8.2461059]
[1733985938573,2.08,229.76,229.71,8.2461059]
[1733985938876,2.08,229.76,229.74,2.1756]
[1733985939573,2.08,229.76,229.75,2.1755]
[1733985941474,2.08,229.76,229.71,8.2461059]
[1733985941674,2.08,229.76,229.73,2.1756]
[1733985942478,8.2461059,229.78,229.73,2.1756]
[1733985942780,10.3261059,229.78,229.73,2.1756]
[1733985942983,10.3261059,229.78,229.74,2.1755]
[1733985944385,2.08,229.78,229.73,8.2461059]
[1733985944584,2.08,229.78,229.7,1.3768]
[1733985944787,2.08,229.78,229.74,2.1755]
[1733985944982,2.08,229.78,229.73,8.2461059]
[1733985945213,2.08,229.85,229.8,2.175]
[1733985945383,10.3261059,229.85,229.8,2.175]
[1733985946483,8.2461059,229.86,229.8,2.175]
[1733985946785,2.08,229.85,229.8,2.175]
[1733985947688,4.2545,229.86,229.81,2.1749]
[1733985947887,12.5006059,229.86,229.81,2.1749]
[1733985948084,8.2461059,229.86,229.79,8.2461059]
[1733985948288,8.2461059,229.88,229.78,1.3652]
[1733985948486,2.08,229.88,229.81,8.2461059]
[1733985949090,2.08,229.88,229.83,2.1747]
[1733985949289,2.08,229.88,229.81,8.2461059]
[1733985949588,2.174,229.91,229.81,8.2461059]
[1733985949783,8.2461059,229.88,229.81,8.2461059]
[1733985950185,10.3261059,229.88,229.79,1.3958]
[1733985950385,8.2461059,229.86,229.81,2.1748]
[1733985950784,10.4208059,229.84,229.78,1.3652]
[1733985950990,2.08,229.83,229.78,1.3652]
[1733985952292,2.08,229.83,229.79,2.1751]
[1733985952889,2.08,229.83,229.78,1.3652]
[1733985955391,2.08,229.83,229.77,2.1752]
[1733985955593,8.2461059,229.82,229.77,2.1752]
[1733985956693,8.2461059,229.8,229.75,2.1754]
[1733985959197,2.1742,229.88,229.8,2.175]
[1733985959398,8.2461059,229.85,229.8,2.175]
[1733985959592,2.08,229.84,229.8,2.175]
[1733985959788,2.08,229.84,229.79,2.1751]
[1733985962999,8.2461059,229.83,229.79,2.1751]
[1733985964600,8.2461059,229.83,229.77,2.1753]
[1733985965195,8.2461059,229.83,229.78,2.1751]
[1733985965598,8.2461059,229.83,229.76,8.2461059]
[1733985965806,8.2461059,229.83,229.79,2.1751]
[1733985966302,8.2461059,229.83,229.78,2.1752]
[1733985967502,8.2461059,229.83,229.73,1.4348]
[1733985967503,8.2461059,229.83,229.79,2.1751]
[1733985967697,8.2461059,229.83,229.77,8.2461059]
[1733985967897,8.2461059,229.83,229.78,2.1751]
[1733985968103,8.2461059,229.83,229.77,8.2461059]
[1733985969602,8.2461059,229.83,229.78,2.1752]
[1733985969798,8.2461059,229.81,229.73,1.4348]
[1733985970104,2.08,229.83,229.73,1.4348]
[1733985970105,8.2461059,229.79,229.73,1.4348]
[1733985970304,8.2461059,229.77,229.73,3.6104]
[1733985970704,8.2461059,229.75,229.7,5.10243954]
[1733985971505,8.2461059,229.75,229.7,7.27833954]
[1733985974496,8.2461059,229.77,229.7,13.34854544]
[1733985974701,8.2461059,229.77,229.72,2.1757]
[1733985975501,2.06,229.77,229.74,8.2461059]
[1733985976707,2.06,229.77,229.75,2.1755]
[1733985981612,2.06,229.78,229.76,2.1754]
[1733985981807,2.0051,229.93,229.76,8.2461059]
[1733985982007,8.2461059,229.86,229.78,8.2461059]
[1733985982208,2.06,229.85,229.78,8.2461059]
[1733985982513,8.2461059,229.82,229.72,3.5052]
[1733985982703,8.2461059,229.8,229.72,3.5052]
[1733985983012,10.3061059,229.8,229.73,8.2461059]
[1733985983806,10.3061059,229.8,229.75,2.1755]
[1733985986015,10.3061059,229.8,229.71,9.6906059]
[1733985986016,12.4811059,229.8,229.71,9.6906059]
[1733985986609,10.4215059,229.76,229.71,1.4445]
[1733985986810,8.2461059,229.74,229.7,5.10243954]
[1733985987509,8.2461059,229.74,229.71,2.1758]
[1733985987913,8.2461059,229.74,229.66,2.06]
[1733985987914,8.2461059,229.74,229.68,8.2461059]
[1733985988308,8.2461059,229.74,229.7,2.1759]
[1733985988510,2.06,229.75,229.7,2.1759]
[1733985989116,2.06,229.75,229.71,2.1758]
[1733985990213,2.06,229.75,229.7,8.2461059]
[1733985992014,2.1748,229.83,229.76,2.1753]
[1733985992215,2.06,229.8,229.76,8.2461059]
[1733985993415,2.06,229.81,229.78,2.1752]
[1733985994320,2.1746,229.84,229.78,10.4213059]
[1733985994620,2.1746,229.84,229.79,2.1751]
[1733985994621,2.06,229.83,229.79,2.1751]
[1733985996523,12.4808059,229.83,229.79,2.1751]
[1733985996726,8.2461059,229.81,229.72,8.2461059]
[1733985996913,2.06,229.83,229.72,8.2461059]
[1733985996914,8.2461059,229.79,229.72,8.2461059]
[1733985997117,8.2461059,229.77,229.7,9.6921059]
[1733985997313,10.3061059,229.77,229.7,9.6921059]
[1733985997716,2.06,229.77,229.72,8.2461059]
[1733985998121,2.06,229.77,229.74,8.2461059]
[1733985998728,2.06,229.77,229.76,2.1754]
[1733985998924,26.2101901,229.92,229.74,8.2461059]
[1733985999227,8.2461059,229.82,229.76,8.2461059]
[1733985999428,10.3061059,229.82,229.76,8.2461059]
[1733986000624,10.3061059,229.82,229.78,2.1752]
[1733986000922,10.3061059,229.82,229.74,8.2461059]
[1733986001820,8.2461059,229.8,229.7,1.446]
[1733986002026,2.06,229.82,229.7,1.446]
[1733986002027,8.2461059,229.78,229.7,1.446]
[1733986002226,2.06,229.77,229.7,1.446]
[1733986002427,4.2353,229.77,229.71,2.1758]
[1733986003626,2.1752,229.79,229.73,8.2461059]
[1733986003926,8.2461059,229.79,229.73,8.2461059]
[1733986005732,10.4212059,229.79,229.7,1.446]
[1733986005950,10.4212059,229.79,229.72,8.2461059]
[1733986006423,10.4212059,229.79,229.73,2.1757]
[1733986007729,8.2461059,229.79,229.72,8.2461059]
[1733986008029,2.1752,229.78,229.72,8.2461059]
[1733986008531,2.1752,229.78,229.71,5.32523376]
[1733986008532,8.2461059,229.75,229.7,1.446]
[1733986008723,8.2461059,229.75,229.66,8.2461059]
[1733986008724,10.3061059,229.75,229.66,8.2461059]
[1733986009128,10.3061059,229.75,229.69,5.14243346]
[1733986009330,10.3061059,229.75,229.69,7.31843346]
[1733986010132,12.4816059,229.75,229.69,7.31843346]
[1733986013735,2.06,229.75,229.7,10.4220059]
[1733986014125,2.06,229.74,229.7,10.4220059]
[1733986021042,2.06,229.74,229.7,8.2461059]
[1733986021938,2.06,229.74,229.69,5.14243346]
[1733986022136,2.06,229.74,229.69,7.31843346]
[1733986022137,4.2356,229.74,229.69,7.31843346]
[1733986024245,4.2356,229.74,229.65,2.7641]
[1733986024445,4.2356,229.74,229.68,2.1761]
[1733986024846,4.2356,229.74,229.67,8.2461059]
[1733986024847,2.1758,229.72,229.67,8.2461059]
[1733986025347,8.2461059,229.73,229.67,8.2461059]
[1733986025546,8.2461059,229.73,229.67,10.4223059]
[1733986026642,2.176,229.7,229.64,2.1765]
[1733986026847,8.2461059,229.67,229.63,1.4169]
[1733986027240,2.06,229.68,229.63,1.4169]
[1733986027542,4.2361,229.68,229.63,1.4169]
[1733986029747,2.06,229.68,229.64,8.2461059]
[1733986031748,2.06,229.68,229.64,10.4226059]
[1733986031948,2.06,229.68,229.63,1.4169]
[1733986033644,2.06,229.68,229.63,3.5935]
[1733986034152,2.06,229.68,229.64,8.2461059]
[1733986035043,2.06,229.68,229.64,10.4226059]
[1733986035239,2.06,229.68,229.64,8.2461059]
[1733986036045,8.2461059,229.71,229.64,8.2461059]
[1733986036259,2.06,229.75,229.68,8.2461059]
[1733986036846,2.06,229.74,229.68,8.2461059]
[1733986037242,2.06,229.74,229.69,2.176]
[1733986037451,2.06,229.74,229.68,8.2461059]
[1733986037652,10.3061059,229.74,229.68,8.2461059]
[1733986037853,10.3061059,229.74,229.64,2.6912]
[1733986038050,2.1757,229.73,229.69,2.176]
[1733986038253,10.3061059,229.74,229.69,2.176]
[1733986038949,12.4817059,229.74,229.67,8.2461059]
[1733986039145,2.06,229.74,229.69,8.2461059]
[1733986040247,2.06,229.74,229.71,2.1758]
[1733986040450,10.3061059,229.74,229.67,8.2461059]
[1733986041057,2.1757,229.73,229.68,2.176]
[1733986041956,10.3061059,229.74,229.7,2.1759]
[1733986042257,2.06,229.74,229.7,2.1759]
[1733986044253,2.06,229.74,229.69,8.2461059]
[1733986044455,2.06,229.74,229.71,2.1758]
[1733986045962,2.06,229.74,229.72,2.1757]
[1733986046557,10.3061059,229.74,229.69,2.176]
[1733986047555,12.4817059,229.74,229.69,2.176]
[1733986047760,10.3061059,229.74,229.67,8.2461059]
[1733986047955,10.3061059,229.74,229.7,2.1759]
[1733986049657,12.4817059,229.74,229.7,2.1759]
[1733986050454,12.4817059,229.74,229.69,2.176]
[1733986051152,8.2461059,229.72,229.65,8.2461059]
[1733986052558,2.1759,229.71,229.66,2.1763]
[1733986053965,2.1759,229.71,229.65,8.2461059]
[1733986054162,2.1759,229.71,229.65,10.4225059]
[1733986054357,8.2461059,229.72,229.65,2.1764]
[1733986054662,2.176,229.7,229.65,2.1764]
[1733986057165,2.06,229.74,229.66,8.2461059]
[1733986057166,2.1759,229.71,229.66,8.2461059]
[1733986057367,2.1759,229.71,229.66,10.4224059]
[1733986058466,2.06,229.74,229.66,8.2461059]
[1733986058667,1.4207,229.79,229.63,1.4169]
[1733986058668,1.4207,229.79,229.7,8.2461059]
[1733986058860,8.2461059,229.77,229.7,8.2461059]
[1733986059057,8.2461059,229.75,229.68,8.2461059]
[1733986059564,2.1756,229.74,229.68,10.4221059]
[1733986059755,2.1756,229.74,229.68,8.2461059]
[1733986060562,2.1756,229.74,229.69,2.176]
[1733986060965,10.4216059,229.75,229.69,2.176]
[1733986061858,8.2461059,229.75,229.69,2.176]
[1733986062165,8.2461059,229.75,229.64,4.8126]
[1733986062166,2.1756,229.74,229.67,8.2461059]
[1733986062460,2.1756,229.74,229.64,4.8126]
[1733986062664,2.1756,229.74,229.68,8.2461059]
[1733986063569,2.1756,229.74,229.68,10.4222059]
[1733986063771,2.1756,229.74,229.68,8.2461059]
[1733986064471,4.2356,229.74,229.68,8.2461059]
[1733986064665,4.2356,229.74,229.69,2.176]
[1733986064867,2.1757,229.73,229.66,8.2461059]
[1733986065568,10.4218059,229.73,229.68,2.1761]
[1733986065964,4.2356,229.74,229.68,10.4222059]
[1733986066561,2.1756,229.74,229.68,10.4222059]
[1733986066764,2.1756,229.74,229.68,8.2461059]
[1733986066970,2.06,229.75,229.69,2.176]
[1733986068266,2.06,229.75,229.7,2.1759]
[1733986068572,4.2355,229.75,229.7,2.1759]
[1733986070964,2.1755,229.75,229.7,2.1759]
[1733986071164,4.2355,229.75,229.7,2.1759]
[1733986072463,8.2461059,229.74,229.7,2.1759]
[1733986073964,10.4217059,229.74,229.7,2.1759]
[1733986075568,8.2461059,229.72,229.64,2.7526]
[1733986075772,8.2461059,229.7,229.64,2.7526]
[1733986075967,8.2461059,229.68,229.63,9.6630059]
[1733986076171,2.1762,229.67,229.63,9.6630059]
[1733986076776,2.06,229.7,229.63,9.6630059]
[1733986076777,10.4222059,229.69,229.63,9.6630059]
[1733986076967,10.4222059,229.69,229.63,1.4169]
[1733986077269,8.2461059,229.69,229.63,1.4169]
[1733986078678,2.1762,229.67,229.63,1.4169]
[1733986083182,8.2461059,229.69,229.63,3.5935]
[1733986083183,2.1761,229.69,229.63,3.5935]
[1733986083484,8.2461059,229.68,229.63,3.5935]
[1733986085183,8.2461059,229.66,229.56,41.9331361]
[1733986085383,10.4230059,229.6,229.49,2.7743]
[1733986085585,12.4830059,229.6,229.51,8.2461059]
[1733986085884,12.4830059,229.6,229.53,8.2461059]
[1733986087587,12.4830059,229.6,229.53,10.4236059]
[1733986087784,12.4830059,229.6,229.53,8.2461059]
[1733986088185,2.06,229.6,229.57,8.2461059]
[1733986088991,2.06,229.63,229.59,8.2461059]
[1733986089286,2.06,229.64,229.61,8.2461059]
[1733986089496,2.06,229.64,229.61,10.4229059]
[1733986089686,2.06,229.64,229.61,8.2461059]
[1733986089891,2.06,229.69,229.64,2.1765]
[1733986090390,2.06,229.69,229.65,8.2461059]
[1733986090888,2.176,229.7,229.65,8.2461059]
[1733986091187,4.236,229.7,229.65,8.2461059]
[1733986091488,4.236,229.7,229.64,2.1765]
[1733986091489,2.06,229.7,229.64,2.1765]
[1733986091688,2.1761,229.69,229.64,2.1765]
[1733986092790,4.2359,229.7,229.64,2.1765]
[1733986093493,2.1761,229.69,229.63,10.4227059]
[1733986094494,2.1761,229.69,229.64,2.1765]
[1733986095192,2.1761,229.69,229.63,8.2461059]
[1733986095392,2.1762,229.68,229.62,2.1766]
[1733986095896,8.2461059,229.67,229.61,10.4229059]
[1733986096090,8.2461059,229.67,229.56,1.3697]
[1733986096091,8.2461059,229.67,229.59,8.2461059]
[1733986096386,8.2461059,229.65,229.59,8.2461059]
[1733986096587,2.06,229.65,229.59,8.2461059]
[1733986097592,2.06,229.65,229.6,2.1769]
[1733986097993,2.06,229.65,229.61,8.2461059]
[1733986098394,2.06,229.65,229.62,2.1766]
[1733986098587,2.06,229.65,229.63,8.2461059]
[1733986099799,2.06,229.65,229.63,10.4227059]
[1733986100491,4.236,229.69,229.63,10.4227059]
[1733986100687,2.1761,229.68,229.63,10.4227059]
[1733986101998,2.1761,229.68,229.63,2.1766]
[1733986102497,10.3061059,229.69,229.63,2.1766]
[1733986102698,2.1762,229.67,229.63,2.1766]
[1733986103088,12.4822059,229.69,229.61,8.2461059]
[1733986103291,4.2361,229.69,229.63,8.2461059]
[1733986103787,8.2461059,229.67,229.6,8.2461059]
[1733986104400,2.1764,229.65,229.61,2.1768]
[1733986105595,2.1764,229.65,229.6,8.2461059]
[1733986105891,2.1764,229.65,229.6,10.4230059]
[1733986110405,2.1764,229.65,229.6,8.2461059]
[1733986112807,2.1764,229.65,229.6,10.4230059]
[1733986113010,2.1761,229.68,229.62,8.2461059]
[1733986113207,2.1761,229.68,229.63,2.1766]
[1733986113604,2.06,229.68,229.66,8.2461059]
[1733986114903,2.176,229.7,229.66,8.2461059]
[1733986115107,4.236,229.7,229.66,8.2461059]
[1733986115510,64.22374134,229.78,229.68,8.2461059]
[1733986115702,64.22374134,229.78,229.7,8.2461059]
[1733986115703,10.3061059,229.77,229.7,8.2461059]
[1733986116004,2.06,229.77,229.7,8.2461059]
[1733986116803,8.2461059,229.76,229.69,8.2461059]
[1733986117311,2.1756,229.74,229.69,10.4221059]
[1733986120203,8.2461059,229.76,229.69,2.176]
[1733986120410,2.1757,229.73,229.69,2.176]
[1733986121207,64.22374134,229.78,229.61,2.06]
[1733986121208,10.3061059,229.72,229.61,2.06]
[1733986121410,2.06,229.71,229.64,8.2461059]
[1733986121608,2.06,229.71,229.64,10.4225059]
[1733986121609,2.1759,229.7,229.64,10.4225059]
[1733986121809,2.1759,229.7,229.64,8.2461059]
[1733986122706,2.1759,229.7,229.65,2.1764]
[1733986122910,2.1759,229.7,229.64,8.2461059]
[1733986123100,8.2461059,229.69,229.62,10.4227059]
[1733986123304,8.2461059,229.69,229.62,8.2461059]
[1733986124108,2.1763,229.66,229.62,8.2461059]
[1733986125812,2.1762,229.68,229.62,8.2461059]
[1733986126713,2.1762,229.68,229.62,10.4228059]
[1733986127109,2.1762,229.68,229.58,1.4473]
[1733986127110,2.1757,229.73,229.66,10.4223059]
[1733986127315,2.06,229.72,229.66,10.4223059]
[1733986128819,4.2358,229.72,229.66,10.4223059]
[1733986129914,2.1759,229.71,229.66,10.4223059]
[1733986130112,8.2461059,229.71,229.65,2.1764]
[1733986130314,8.2461059,229.71,229.64,8.2461059]
[1733986131123,2.06,229.72,229.58,1.4473]
[1733986131124,8.2461059,229.69,229.58,1.4473]
[1733986131421,8.2461059,229.69,229.61,8.2461059]
[1733986131622,8.2461059,229.69,229.63,8.2461059]
[1733986132618,10.4222059,229.69,229.63,10.4227059]
[1733986133115,2.1762,229.68,229.63,8.2461059]
[1733986133517,8.2461059,229.69,229.63,8.2461059]
[1733986133821,8.2461059,229.71,229.63,8.2461059]
[1733986134421,2.176,229.7,229.63,10.4226059]
[1733986134625,8.2461059,229.71,229.63,10.4226059]
[1733986135430,8.2461059,229.71,229.64,2.1765]
[1733986136728,2.176,229.69,229.64,2.1765]
[1733986136927,8.2461059,229.71,229.64,2.1765]
[1733986137428,2.176,229.7,229.64,2.1765]
[1733986140031,2.06,229.69,229.64,2.1765]
[1733986140229,4.236,229.69,229.64,2.1765]
[1733986140426,2.06,229.69,229.58,1.4473]
[1733986140630,10.3061059,229.69,229.63,2.1766]
[1733986140827,2.1762,229.67,229.61,8.2461059]
[1733986141033,10.3061059,229.69,229.61,8.2461059]
[1733986141633,12.4822059,229.69,229.63,8.2461059]
[1733986141829,4.2361,229.69,229.63,8.2461059]
[1733986142737,4.2361,229.69,229.64,2.1765]
[1733986145033,64.22374134,229.78,229.67,8.2461059]
[1733986145233,8.2461059,229.75,229.67,8.2461059]
[1733986145640,2.1755,229.75,229.7,2.1759]
[1733986145832,2.06,229.74,229.7,2.1759]
[1733986146029,64.22374134,229.78,229.71,8.2461059]
[1733986146236,2.06,229.77,229.73,2.1756]
[1733986149235,4.2353,229.77,229.72,10.4218059]
[1733986149832,4.2353,229.77,229.73,2.1757]
[1733986150746,4.2353,229.77,229.72,8.2461059]
[1733986151143,2.1754,229.76,229.71,2.1758]
[1733986151347,10.3061059,229.75,229.68,2.176]
[1733986151547,8.2461059,229.73,229.66,9.5710059]
[1733986152043,2.1758,229.72,229.67,2.1761]
[1733986152345,8.2461059,229.73,229.66,9.5710059]
[1733986153647,10.4218059,229.73,229.68,2.1761]
[1733986155543,2.06,229.75,229.69,8.2461059]
[1733986155747,4.2355,229.75,229.69,8.2461059]
[1733986156048,2.06,229.75,229.69,8.2461059]
[1733986156449,2.06,229.75,229.7,2.1759]
[1733986157749,4.2355,229.75,229.7,2.1759]
[1733986157945,10.3061059,229.75,229.66,1.3249]
[1733986158253,8.2461059,229.73,229.66,11.7472059]
[1733986158446,2.1758,229.72,229.66,11.7472059]
[1733986158951,2.1758,229.72,229.66,9.5710059]
[1733986159151,2.1758,229.72,229.68,8.2461059]
[1733986159354,2.1757,229.73,229.68,8.2461059]
[1733986160349,2.1757,229.73,229.67,2.1762]
[1733986160652,2.1757,229.73,229.67,8.2461059]
[1733986160653,8.2461059,229.73,229.67,8.2461059]
[1733986161655,2.1759,229.71,229.67,8.2461059]
[1733986162553,2.1761,229.69,229.65,1.3943]
[1733986164154,2.1761,229.68,229.65,1.3943]
[1733986164858,8.2461059,229.69,229.65,1.3943]
[1733986164859,10.4221059,229.69,229.65,1.3943]
[1733986165061,2.176,229.69,229.65,1.3943]
[1733986169949,2.06,229.71,229.66,10.4224059]
[1733986170151,2.06,229.72,229.68,8.2461059]
[1733986170361,8.2461059,229.76,229.68,8.2461059]
[1733986170558,8.2461059,229.76,229.65,1.3943]
[1733986170559,4.2354,229.76,229.71,2.1758]
[1733986173153,2.1754,229.76,229.71,2.1758]
[1733986174257,2.7503,229.84,229.74,8.2461059]
[1733986174465,2.1751,229.8,229.74,2.1756]
[1733986174657,2.1751,229.8,229.74,10.4217059]
[1733986175455,2.1751,229.8,229.75,2.1755]
[1733986182768,2.06,229.81,229.75,8.2461059]
[1733986183070,2.1748,229.82,229.77,8.2461059]